[Event "Early-Titled-Tuesday-Blitz-May-07-2024"]
[Site "Chess.com"]
[Date "2024.05.07"]
[Round "3"]
[White "Escudito"]
[Black "s_stefi"]
[Result "1-0"]
[WhiteElo "2338"]
[BlackElo "1906"]
[TimeControl "180+1"]
[EndTime "8:31:25 PDT"]
[Termination "Escudito won on time"]

1. d4 {[%clk 0:03:00.9]} 1... Nf6 {[%clk 0:02:59.5]} 2. Nf3 {[%clk 0:03:01]}
2... g6 {[%clk 0:02:58.9]} 3. c4 {[%clk 0:02:57.2]} 3... Bg7 {[%clk 0:02:58.2]}
4. Nc3 {[%clk 0:02:57.7]} 4... d6 {[%clk 0:02:57.9]} 5. e4 {[%clk 0:02:57.4]}
5... O-O {[%clk 0:02:57.8]} 6. Be2 {[%clk 0:02:57.9]} 6... Nbd7 {[%clk
0:02:57.8]} 7. Be3 {[%clk 0:02:55.7]} 7... e5 {[%clk 0:02:57.7]} 8. d5 {[%clk
0:02:53]} 8... a5 {[%clk 0:02:52.3]} 9. h3 {[%clk 0:02:52.6]} 9... b6 {[%clk
0:02:46.3]} 10. b3 {[%clk 0:02:51.9]} 10... Nc5 {[%clk 0:02:46.3]} 11. Qc2
{[%clk 0:02:48.2]} 11... Ne8 {[%clk 0:02:38.7]} 12. g4 {[%clk 0:02:41.1]} 12...
f5 {[%clk 0:02:29.7]} 13. gxf5 {[%clk 0:02:39.9]} 13... gxf5 {[%clk 0:02:29.8]}
14. Bg5 {[%clk 0:02:28.2]} 14... Qd7 {[%clk 0:02:09.5]} 15. Nd2 {[%clk 0:02:18]}
15... Qf7 {[%clk 0:01:47.7]} 16. O-O-O {[%clk 0:02:03.1]} 16... Kh8 {[%clk
0:00:59]} 17. Rdg1 {[%clk 0:01:57.4]} 17... fxe4 {[%clk 0:00:55.9]} 18. Ndxe4
{[%clk 0:01:52.3]} 18... Bf5 {[%clk 0:00:51]} 19. f3 {[%clk 0:01:47.4]} 19...
Nf6 {[%clk 0:00:39.5]} 20. h4 {[%clk 0:01:18.2]} 20... Nh5 {[%clk 0:00:36.3]}
21. Qd2 {[%clk 0:01:02.2]} 21... a4 {[%clk 0:00:15.1]} 22. b4 {[%clk 0:01:00.9]}
22... Nxe4 {[%clk 0:00:13.2]} 23. fxe4 {[%clk 0:00:55.6]} 23... Bd7 {[%clk
0:00:12.5]} 24. Rf1 {[%clk 0:00:49.9]} 24... Qe8 {[%clk 0:00:12.3]} 25. Rxf8+
{[%clk 0:00:46.2]} 25... Bxf8 {[%clk 0:00:13.2]} 26. Rg1 {[%clk 0:00:42.3]}
26... Bg7 {[%clk 0:00:12.5]} 27. Bh6 {[%clk 0:00:40.2]} 27... Qe7 {[%clk
0:00:10.4]} 28. Bxh5 {[%clk 0:00:39]} 28... Rg8 {[%clk 0:00:03.1]} 29. Bxg7+
{[%clk 0:00:35]} 29... Rxg7 {[%clk 0:00:03.1]} 30. Rxg7 {[%clk 0:00:35.4]} 30...
Qxg7 {[%clk 0:00:03.5]} 31. Qg5 {[%clk 0:00:36]} 1-0

[Event "Early-Titled-Tuesday-Blitz-May-07-2024"]
[Site "Chess.com"]
[Date "2024.05.07"]
[Round "3"]
[White "tantaan"]
[Black "Hasangatin_Ramil"]
[Result "0-1"]
[WhiteElo "2490"]
[BlackElo "2665"]
[TimeControl "180+1"]
[EndTime "8:31:30 PDT"]
[Termination "Hasangatin_Ramil won by resignation"]

1. d4 {[%clk 0:03:00.9]} 1... d6 {[%clk 0:02:59.5]} 2. c4 {[%clk 0:03:00.8]}
2... e5 {[%clk 0:02:59.1]} 3. e3 {[%clk 0:02:57]} 3... Nf6 {[%clk 0:02:58.5]} 4.
Nc3 {[%clk 0:02:56.5]} 4... Nc6 {[%clk 0:02:55.6]} 5. d5 {[%clk 0:02:49.8]} 5...
Ne7 {[%clk 0:02:55.2]} 6. Bd3 {[%clk 0:02:47.2]} 6... Ng6 {[%clk 0:02:53.7]} 7.
Nge2 {[%clk 0:02:46.5]} 7... Be7 {[%clk 0:02:53.3]} 8. O-O {[%clk 0:02:46.4]}
8... O-O {[%clk 0:02:53.8]} 9. f4 {[%clk 0:02:42.6]} 9... exf4 {[%clk
0:02:48.4]} 10. exf4 {[%clk 0:02:43.5]} 10... Re8 {[%clk 0:02:47.3]} 11. Nd4
{[%clk 0:02:35.5]} 11... Bf8 {[%clk 0:02:46.6]} 12. Qf3 {[%clk 0:02:27]} 12...
Nd7 {[%clk 0:02:39.3]} 13. Bd2 {[%clk 0:02:21.5]} 13... Qf6 {[%clk 0:02:38.7]}
14. Ndb5 {[%clk 0:02:15.8]} 14... Qd8 {[%clk 0:02:37.3]} 15. Rae1 {[%clk
0:02:13.8]} 15... Rxe1 {[%clk 0:02:33.7]} 16. Rxe1 {[%clk 0:02:12.9]} 16... a6
{[%clk 0:02:34.3]} 17. Nd4 {[%clk 0:02:10]} 17... Qf6 {[%clk 0:02:34]} 18. Be3
{[%clk 0:01:43.3]} 18... Nc5 {[%clk 0:02:29.5]} 19. Bc2 {[%clk 0:01:42.4]} 19...
Nh4 {[%clk 0:02:12.3]} 20. Qf2 {[%clk 0:01:39.4]} 20... Nf5 {[%clk 0:02:12]} 21.
Nxf5 {[%clk 0:01:32.6]} 21... Bxf5 {[%clk 0:02:12.9]} 22. Bd4 {[%clk 0:01:24.8]}
22... Qg6 {[%clk 0:02:09.8]} 23. Bxf5 {[%clk 0:01:21.9]} 23... Qxf5 {[%clk
0:02:10.7]} 24. Bxc5 {[%clk 0:01:20]} 24... dxc5 {[%clk 0:02:10.3]} 25. Re5
{[%clk 0:01:09.9]} 25... Qd3 {[%clk 0:02:09]} 26. Qe2 {[%clk 0:01:10.2]} 26...
Qd4+ {[%clk 0:02:07.5]} 27. Kh1 {[%clk 0:01:08.9]} 27... Qxf4 {[%clk 0:02:07]}
28. g3 {[%clk 0:01:02.2]} 28... Qf6 {[%clk 0:01:55.1]} 29. Kg2 {[%clk
0:00:56.6]} 29... g6 {[%clk 0:01:51.2]} 30. h4 {[%clk 0:00:46.2]} 30... Bd6
{[%clk 0:01:50.5]} 31. Re3 {[%clk 0:00:43.9]} 31... Bf8 {[%clk 0:01:40.3]} 32.
Ne4 {[%clk 0:00:43]} 32... Qb6 {[%clk 0:01:40.2]} 33. b3 {[%clk 0:00:38.7]}
33... Bg7 {[%clk 0:01:40.5]} 34. Ng5 {[%clk 0:00:34.9]} 34... Qf6 {[%clk
0:01:33.1]} 35. Re7 {[%clk 0:00:28.8]} 35... Rf8 {[%clk 0:01:15.3]} 36. Rxc7
{[%clk 0:00:24.6]} 36... h6 {[%clk 0:01:14.3]} 37. Nf3 {[%clk 0:00:17.6]} 37...
Qb6 {[%clk 0:01:09.1]} 38. Re7 {[%clk 0:00:17.9]} 38... Qd6 {[%clk 0:01:07.9]}
39. Nd2 {[%clk 0:00:16]} 39... b5 {[%clk 0:01:06]} 40. Re3 {[%clk 0:00:15.4]}
40... Bd4 {[%clk 0:01:00.2]} 41. Re7 {[%clk 0:00:14.9]} 41... h5 {[%clk
0:00:52.5]} 42. Nf3 {[%clk 0:00:15.2]} 42... Bf6 {[%clk 0:00:51.6]} 43. Qe4
{[%clk 0:00:15.3]} 43... Qxe7 {[%clk 0:00:50.7]} 0-1

[Event "Early-Titled-Tuesday-Blitz-May-07-2024"]
[Site "Chess.com"]
[Date "2024.05.07"]
[Round "3"]
[White "Alexandr_Kholin"]
[Black "BirdMaster3000"]
[Result "1-0"]
[WhiteElo "2488"]
[BlackElo "2628"]
[TimeControl "180+1"]
[EndTime "8:31:30 PDT"]
[Termination "Alexandr_Kholin won by resignation"]

1. d4 {[%clk 0:03:00.9]} 1... f5 {[%clk 0:02:59.9]} 2. Nf3 {[%clk 0:03:00]} 2...
Nf6 {[%clk 0:03:00.2]} 3. Bf4 {[%clk 0:03:00.3]} 3... g6 {[%clk 0:02:59]} 4. e3
{[%clk 0:03:00.5]} 4... Bg7 {[%clk 0:02:59.6]} 5. h3 {[%clk 0:02:58.4]} 5... O-O
{[%clk 0:02:59.6]} 6. Be2 {[%clk 0:02:58.4]} 6... d6 {[%clk 0:02:59.8]} 7. O-O
{[%clk 0:02:57.7]} 7... Nc6 {[%clk 0:02:58.7]} 8. Bh2 {[%clk 0:02:56.4]} 8...
Ne4 {[%clk 0:02:58.2]} 9. c4 {[%clk 0:02:56.2]} 9... e5 {[%clk 0:02:46.1]} 10.
dxe5 {[%clk 0:02:44.4]} 10... dxe5 {[%clk 0:02:45.6]} 11. Qb3 {[%clk 0:02:41.1]}
11... Qe8 {[%clk 0:02:42.1]} 12. Nbd2 {[%clk 0:02:16.5]} 12... Nc5 {[%clk
0:02:39.9]} 13. Qa3 {[%clk 0:02:12.4]} 13... b6 {[%clk 0:02:33]} 14. b4 {[%clk
0:02:06.7]} 14... Nb7 {[%clk 0:02:32.5]} 15. Rac1 {[%clk 0:02:01.5]} 15... a5
{[%clk 0:02:31.6]} 16. b5 {[%clk 0:01:56]} 16... Nb4 {[%clk 0:02:31.7]} 17. Nb3
{[%clk 0:01:52.4]} 17... Nc5 {[%clk 0:01:51]} 18. Nxc5 {[%clk 0:01:49.6]} 18...
bxc5 {[%clk 0:01:51.9]} 19. Rfd1 {[%clk 0:01:42]} 19... Bb7 {[%clk 0:01:46.6]}
20. Ne1 {[%clk 0:01:41.9]} 20... a4 {[%clk 0:01:37.7]} 21. Nc2 {[%clk
0:01:36.1]} 21... Qe7 {[%clk 0:01:35.3]} 22. Nxb4 {[%clk 0:01:10.2]} 22... cxb4
{[%clk 0:01:35.4]} 23. Qb2 {[%clk 0:01:08.8]} 23... c5 {[%clk 0:01:07]} 24. bxc6
{[%clk 0:01:05]} 24... Bxc6 {[%clk 0:01:07.4]} 25. c5 {[%clk 0:01:05.9]} 25...
Rfb8 {[%clk 0:01:07.1]} 26. Rd6 {[%clk 0:01:04.7]} 26... Qe8 {[%clk 0:01:02.7]}
27. Bc4+ {[%clk 0:01:03.5]} 27... Kh8 {[%clk 0:01:02.5]} 28. Qd2 {[%clk
0:01:03.7]} 28... Rd8 {[%clk 0:00:51.7]} 29. Qxb4 {[%clk 0:01:01.7]} 29... Rab8
{[%clk 0:00:46.4]} 30. Qd2 {[%clk 0:00:59.8]} 30... e4 {[%clk 0:00:41.1]} 31.
Rd1 {[%clk 0:00:48.1]} 31... Rxd6 {[%clk 0:00:30.5]} 32. cxd6 {[%clk 0:00:49]}
32... Qd7 {[%clk 0:00:27.7]} 33. Bf4 {[%clk 0:00:47.6]} 33... h6 {[%clk
0:00:27.5]} 34. h4 {[%clk 0:00:47.5]} 34... Rb2 {[%clk 0:00:21.1]} 35. Qa5
{[%clk 0:00:46.3]} 35... Kh7 {[%clk 0:00:16.5]} 36. Qc7 {[%clk 0:00:45.8]} 36...
Bf6 {[%clk 0:00:15.8]} 37. Be6 {[%clk 0:00:44.3]} 37... Qg7 {[%clk 0:00:10.3]}
38. d7 {[%clk 0:00:42.5]} 38... g5 {[%clk 0:00:09.6]} 39. Bxf5+ {[%clk 0:00:40]}
1-0

[Event "Early-Titled-Tuesday-Blitz-May-07-2024"]
[Site "Chess.com"]
[Date "2024.05.07"]
[Round "3"]
[White "Masterisback04"]
[Black "HanSchut"]
[Result "0-1"]
[WhiteElo "2011"]
[BlackElo "2358"]
[TimeControl "180+1"]
[EndTime "8:31:32 PDT"]
[Termination "HanSchut won on time"]

1. e4 {[%clk 0:03:00.2]} 1... c5 {[%clk 0:02:59.8]} 2. Nf3 {[%clk 0:02:59.8]}
2... d6 {[%clk 0:03:00.1]} 3. d4 {[%clk 0:02:59.7]} 3... cxd4 {[%clk 0:03:01]}
4. Nxd4 {[%clk 0:02:58.1]} 4... Nf6 {[%clk 0:03:01.3]} 5. Nc3 {[%clk 0:02:54.9]}
5... a6 {[%clk 0:03:01.6]} 6. Be3 {[%clk 0:02:54.4]} 6... e5 {[%clk 0:03:01.5]}
7. Nb3 {[%clk 0:02:54]} 7... Be6 {[%clk 0:03:01.6]} 8. Be2 {[%clk 0:02:51.3]}
8... Be7 {[%clk 0:03:00.2]} 9. g3 {[%clk 0:02:51.2]} 9... Nbd7 {[%clk
0:02:56.3]} 10. g4 {[%clk 0:02:30.2]} 10... h6 {[%clk 0:02:47.2]} 11. Rg1 {[%clk
0:02:21.5]} 11... Nb6 {[%clk 0:01:49.5]} 12. Na5 {[%clk 0:01:47.8]} 12... Qc7
{[%clk 0:01:24.7]} 13. Qd2 {[%clk 0:01:31.3]} 13... Rd8 {[%clk 0:01:08.7]} 14.
Nd5 {[%clk 0:00:44.4]} 14... Nbxd5 {[%clk 0:00:54.5]} 15. exd5 {[%clk
0:00:44.3]} 15... Nxd5 {[%clk 0:00:54.3]} 16. O-O-O {[%clk 0:00:08.6]} 16...
Nxe3 {[%clk 0:00:49.3]} 17. fxe3 {[%clk 0:00:09.5]} 17... d5 {[%clk 0:00:42.1]}
18. Kb1 {[%clk 0:00:08.4]} 18... Qb6 {[%clk 0:00:26.5]} 19. Nb3 {[%clk
0:00:06.4]} 19... O-O {[%clk 0:00:17.9]} 20. Qe1 {[%clk 0:00:05.2]} 20... a5
{[%clk 0:00:15]} 21. h4 {[%clk 0:00:04.2]} 21... a4 {[%clk 0:00:13.8]} 22. Nc1
{[%clk 0:00:04.2]} 22... Ba3 {[%clk 0:00:12.7]} 23. b3 {[%clk 0:00:02.7]} 23...
Qxe3 {[%clk 0:00:10.5]} 0-1

[Event "Early-Titled-Tuesday-Blitz-May-07-2024"]
[Site "Chess.com"]
[Date "2024.05.07"]
[Round "3"]
[White "vaishali2001"]
[Black "kleinebeer98"]
[Result "0-1"]
[WhiteElo "2695"]
[BlackElo "2926"]
[TimeControl "180+1"]
[EndTime "8:31:33 PDT"]
[Termination "kleinebeer98 won by resignation"]

1. e4 {[%clk 0:03:00.9]} 1... e5 {[%clk 0:02:57.9]} 2. Nf3 {[%clk 0:03:00.5]}
2... Nc6 {[%clk 0:02:58.5]} 3. Nc3 {[%clk 0:03:00.7]} 3... Nf6 {[%clk
0:02:58.6]} 4. h3 {[%clk 0:03:00.8]} 4... d5 {[%clk 0:02:55.8]} 5. exd5 {[%clk
0:03:01.7]} 5... Nxd5 {[%clk 0:02:56.6]} 6. Bb5 {[%clk 0:03:01.5]} 6... Nxc3
{[%clk 0:02:57.2]} 7. bxc3 {[%clk 0:03:01.6]} 7... Bd6 {[%clk 0:02:57.7]} 8. O-O
{[%clk 0:03:00.9]} 8... O-O {[%clk 0:02:57.9]} 9. d4 {[%clk 0:03:01]} 9... exd4
{[%clk 0:02:57.5]} 10. cxd4 {[%clk 0:03:01.9]} 10... h6 {[%clk 0:02:56.3]} 11.
Bb2 {[%clk 0:03:00.1]} 11... Bf5 {[%clk 0:02:49.6]} 12. c4 {[%clk 0:02:58.3]}
12... a6 {[%clk 0:02:43.6]} 13. Ba4 {[%clk 0:02:52.9]} 13... Na5 {[%clk
0:02:41]} 14. Bc2 {[%clk 0:02:23.9]} 14... Qf6 {[%clk 0:02:26.7]} 15. Bxf5
{[%clk 0:02:08.8]} 15... Qxf5 {[%clk 0:02:27.6]} 16. Rc1 {[%clk 0:02:08.3]}
16... b5 {[%clk 0:02:20.4]} 17. cxb5 {[%clk 0:01:35]} 17... axb5 {[%clk
0:02:21.3]} 18. Qc2 {[%clk 0:01:23.2]} 18... Qd5 {[%clk 0:02:17.5]} 19. Ne5
{[%clk 0:01:09.9]} 19... Qxa2 {[%clk 0:02:09.9]} 20. Ra1 {[%clk 0:00:54]} 20...
Qd5 {[%clk 0:02:09.1]} 21. Rfe1 {[%clk 0:00:44.9]} 21... Nb3 {[%clk 0:02:07.2]}
22. Rxa8 {[%clk 0:00:43]} 22... Rxa8 {[%clk 0:02:08.1]} 23. Nf3 {[%clk 0:00:39]}
23... Rd8 {[%clk 0:02:02.7]} 24. Bc3 {[%clk 0:00:34.6]} 24... Qc4 {[%clk
0:01:54.4]} 25. Rb1 {[%clk 0:00:25.8]} 25... Na5 {[%clk 0:01:22.8]} 26. Nd2
{[%clk 0:00:23.8]} 26... Qc6 {[%clk 0:01:23.4]} 27. d5 {[%clk 0:00:20.6]} 27...
Qb6 {[%clk 0:01:20.1]} 28. Qb2 {[%clk 0:00:16.9]} 28... Bc5 {[%clk 0:01:01.4]}
29. Bxg7 {[%clk 0:00:12.8]} 29... Bxf2+ {[%clk 0:00:58]} 30. Kh1 {[%clk
0:00:13.3]} 30... Rxd5 {[%clk 0:00:58.3]} 31. Ne4 {[%clk 0:00:11.5]} 31... Bd4
{[%clk 0:00:56.4]} 32. Bxd4 {[%clk 0:00:04.8]} 32... Rxd4 {[%clk 0:00:57.3]} 33.
Ng3 {[%clk 0:00:03.4]} 33... Nc4 {[%clk 0:00:56.6]} 34. Qe2 {[%clk 0:00:03.7]}
34... Qg6 {[%clk 0:00:55]} 35. Nh5 {[%clk 0:00:03.4]} 35... Qxb1+ {[%clk
0:00:55.2]} 36. Kh2 {[%clk 0:00:03.4]} 36... Qg6 {[%clk 0:00:52.2]} 37. Ng3
{[%clk 0:00:03.2]} 37... Qd6 {[%clk 0:00:46.3]} 38. Qe8+ {[%clk 0:00:03.5]}
38... Kg7 {[%clk 0:00:46.3]} 39. Qxb5 {[%clk 0:00:03.5]} 39... Rd3 {[%clk
0:00:43.4]} 0-1

[Event "Early-Titled-Tuesday-Blitz-May-07-2024"]
[Site "Chess.com"]
[Date "2024.05.07"]
[Round "3"]
[White "giovannibrandao7"]
[Black "LLariMarc"]
[Result "1-0"]
[WhiteElo "2312"]
[BlackElo "2515"]
[TimeControl "180+1"]
[EndTime "8:31:34 PDT"]
[Termination "giovannibrandao7 won by resignation"]

1. e4 {[%clk 0:03:00.9]} 1... e6 {[%clk 0:02:59.2]} 2. d4 {[%clk 0:03:00.6]}
2... d5 {[%clk 0:03:00.1]} 3. Nc3 {[%clk 0:03:00.8]} 3... dxe4 {[%clk
0:03:00.1]} 4. Nxe4 {[%clk 0:03:01.3]} 4... Nf6 {[%clk 0:03:01]} 5. Bg5 {[%clk
0:02:55.4]} 5... Be7 {[%clk 0:03:00.4]} 6. Bxf6 {[%clk 0:02:55.2]} 6... gxf6
{[%clk 0:03:00.4]} 7. Nf3 {[%clk 0:02:54.6]} 7... a6 {[%clk 0:02:58.5]} 8. g3
{[%clk 0:02:48.6]} 8... b5 {[%clk 0:02:58.3]} 9. Bg2 {[%clk 0:02:48.4]} 9... Bb7
{[%clk 0:02:58.9]} 10. O-O {[%clk 0:02:43.4]} 10... Bxe4 {[%clk 0:02:58.3]} 11.
Qe2 {[%clk 0:02:35.4]} 11... Bb7 {[%clk 0:02:58.3]} 12. a4 {[%clk 0:02:35.6]}
12... b4 {[%clk 0:02:55.5]} 13. c4 {[%clk 0:02:25.1]} 13... c5 {[%clk
0:02:47.5]} 14. d5 {[%clk 0:02:19.7]} 14... e5 {[%clk 0:02:45.8]} 15. Nh4 {[%clk
0:02:16.7]} 15... Bd6 {[%clk 0:02:38.8]} 16. Qh5 {[%clk 0:02:13.6]} 16... Bc8
{[%clk 0:02:26.8]} 17. Be4 {[%clk 0:02:07.8]} 17... Ra7 {[%clk 0:02:22.9]} 18.
Rae1 {[%clk 0:02:04]} 18... Re7 {[%clk 0:02:18.2]} 19. Bf5 {[%clk 0:02:01.4]}
19... Bb7 {[%clk 0:02:11.1]} 20. Bh3 {[%clk 0:01:21.7]} 20... Rc7 {[%clk
0:02:06.3]} 21. f4 {[%clk 0:01:19.4]} 21... Nd7 {[%clk 0:01:51.1]} 22. Nf5
{[%clk 0:01:08.3]} 22... Nb6 {[%clk 0:01:36.3]} 23. fxe5 {[%clk 0:01:03.4]}
23... Bxe5 {[%clk 0:01:34.4]} 24. d6 {[%clk 0:00:47.4]} 24... Nxc4 {[%clk
0:00:57.6]} 25. Ng7+ {[%clk 0:00:34.7]} 25... Kf8 {[%clk 0:00:54.4]} 26. Qh6
{[%clk 0:00:09.7]} 26... Qxd6 {[%clk 0:00:19.3]} 27. Nf5+ {[%clk 0:00:08.4]}
27... Ke8 {[%clk 0:00:19.9]} 28. Nxd6+ {[%clk 0:00:08.9]} 28... Nxd6 {[%clk
0:00:20.2]} 29. Qxf6 {[%clk 0:00:08.3]} 29... Re7 {[%clk 0:00:18.5]} 30. Rxe5
{[%clk 0:00:07.7]} 1-0

[Event "Early-Titled-Tuesday-Blitz-May-07-2024"]
[Site "Chess.com"]
[Date "2024.05.07"]
[Round "3"]
[White "manipun1"]
[Black "Gryffindorac8"]
[Result "0-1"]
[WhiteElo "2282"]
[BlackElo "2520"]
[TimeControl "180+1"]
[EndTime "8:31:34 PDT"]
[Termination "Gryffindorac8 won by resignation"]

1. e4 {[%clk 0:02:55.4]} 1... c5 {[%clk 0:02:59.7]} 2. Nf3 {[%clk 0:02:55.9]}
2... d6 {[%clk 0:02:59.4]} 3. Bb5+ {[%clk 0:02:54.4]} 3... Bd7 {[%clk
0:02:59.3]} 4. Bxd7+ {[%clk 0:02:53.2]} 4... Qxd7 {[%clk 0:03:00.2]} 5. c4
{[%clk 0:02:52.1]} 5... Nf6 {[%clk 0:02:59.7]} 6. Nc3 {[%clk 0:02:52.7]} 6...
Nc6 {[%clk 0:03:00]} 7. d4 {[%clk 0:02:52.9]} 7... cxd4 {[%clk 0:03:00.9]} 8.
Nxd4 {[%clk 0:02:53.3]} 8... g6 {[%clk 0:03:01.3]} 9. f3 {[%clk 0:02:53.3]} 9...
Bg7 {[%clk 0:03:01.4]} 10. Be3 {[%clk 0:02:53.4]} 10... O-O {[%clk 0:03:01.3]}
11. Rc1 {[%clk 0:02:53]} 11... a6 {[%clk 0:02:56.3]} 12. O-O {[%clk 0:02:49.8]}
12... Rab8 {[%clk 0:02:47.5]} 13. a4 {[%clk 0:02:47.5]} 13... e6 {[%clk
0:02:39.1]} 14. Qd2 {[%clk 0:02:46]} 14... d5 {[%clk 0:01:51.3]} 15. cxd5 {[%clk
0:02:43.6]} 15... exd5 {[%clk 0:01:51.2]} 16. Nxd5 {[%clk 0:02:28.6]} 16... Nxd5
{[%clk 0:01:50.6]} 17. exd5 {[%clk 0:02:26.6]} 17... Nxd4 {[%clk 0:01:43.9]} 18.
Bxd4 {[%clk 0:02:20.6]} 18... Qxd5 {[%clk 0:01:43.6]} 19. Be3 {[%clk 0:02:02.6]}
19... Qxd2 {[%clk 0:01:40.9]} 20. Bxd2 {[%clk 0:02:02.8]} 20... Bxb2 {[%clk
0:01:38]} 21. Rb1 {[%clk 0:02:02.4]} 21... Bd4+ {[%clk 0:01:32]} 22. Kh1 {[%clk
0:02:02.4]} 22... Rfe8 {[%clk 0:01:31.7]} 23. Bf4 {[%clk 0:02:00.9]} 23... Be5
{[%clk 0:01:26.2]} 24. Bxe5 {[%clk 0:02:00.6]} 24... Rxe5 {[%clk 0:01:27.1]} 25.
Rb6 {[%clk 0:02:00.5]} 25... Re2 {[%clk 0:01:15.5]} 26. h4 {[%clk 0:01:43]}
26... Ra2 {[%clk 0:01:13.2]} 27. Rb4 {[%clk 0:01:42.9]} 27... h5 {[%clk
0:00:59.9]} 28. Rfb1 {[%clk 0:01:38.4]} 28... Re8 {[%clk 0:00:55.7]} 29. Kh2
{[%clk 0:01:30.3]} 29... Ree2 {[%clk 0:00:47]} 30. Rg1 {[%clk 0:01:28.8]} 30...
Reb2 {[%clk 0:00:30.5]} 31. Rxb2 {[%clk 0:01:27.1]} 31... Rxb2 {[%clk
0:00:31.4]} 32. Rc1 {[%clk 0:01:26.6]} 32... Rb4 {[%clk 0:00:31.5]} 33. Rc7
{[%clk 0:01:25.3]} 33... Rxh4+ {[%clk 0:00:29.3]} 34. Kg3 {[%clk 0:01:25.5]}
34... Rxa4 {[%clk 0:00:29.1]} 35. Rxb7 {[%clk 0:01:25.7]} 35... Kg7 {[%clk
0:00:29.6]} 36. Ra7 {[%clk 0:01:25.8]} 36... a5 {[%clk 0:00:29.3]} 37. Kf2
{[%clk 0:01:24.8]} 37... Ra2+ {[%clk 0:00:29.1]} 38. Kg3 {[%clk 0:01:24.8]}
38... a4 {[%clk 0:00:28.8]} 39. Kh2 {[%clk 0:01:23.7]} 39... Ra1 {[%clk
0:00:26.9]} 40. Kg3 {[%clk 0:01:22.8]} 40... a3 {[%clk 0:00:27.2]} 41. Kh2
{[%clk 0:01:22.9]} 41... Kf6 {[%clk 0:00:27.3]} 42. Kg3 {[%clk 0:01:22.9]} 42...
Ke6 {[%clk 0:00:19]} 43. Kh2 {[%clk 0:01:22.4]} 43... f6 {[%clk 0:00:18.1]} 44.
Ra6+ {[%clk 0:01:19.4]} 44... Kf5 {[%clk 0:00:17.7]} 45. Ra5+ {[%clk 0:01:19.3]}
45... Ke6 {[%clk 0:00:15.8]} 46. Ra6+ {[%clk 0:01:19.5]} 46... Ke5 {[%clk
0:00:16.1]} 47. Ra5+ {[%clk 0:01:19.4]} 47... Kd4 {[%clk 0:00:16.2]} 48. Ra6
{[%clk 0:01:19.6]} 48... Kc3 {[%clk 0:00:14.7]} 49. Rxf6 {[%clk 0:01:18.9]}
49... Re1 {[%clk 0:00:12.1]} 50. Rxg6 {[%clk 0:01:17.3]} 50... a2 {[%clk
0:00:12]} 51. Ra6 {[%clk 0:01:17.2]} 51... a1=Q {[%clk 0:00:12.2]} 52. Rxa1
{[%clk 0:01:15.9]} 52... Rxa1 {[%clk 0:00:13.1]} 53. Kg3 {[%clk 0:01:16]} 53...
Kd4 {[%clk 0:00:13.4]} 54. Kf4 {[%clk 0:01:16.3]} 54... Rg1 {[%clk 0:00:10.2]}
55. g3 {[%clk 0:01:16.3]} 55... Kd5 {[%clk 0:00:09.6]} 0-1

[Event "Early-Titled-Tuesday-Blitz-May-07-2024"]
[Site "Chess.com"]
[Date "2024.05.07"]
[Round "3"]
[White "DrVelja"]
[Black "Yeritsyaan"]
[Result "1-0"]
[WhiteElo "2952"]
[BlackElo "2710"]
[TimeControl "180+1"]
[EndTime "8:31:38 PDT"]
[Termination "DrVelja won by resignation"]

1. e4 {[%clk 0:03:00.9]} 1... e5 {[%clk 0:02:57]} 2. Nf3 {[%clk 0:03:01.4]} 2...
Nc6 {[%clk 0:02:57.1]} 3. Bb5 {[%clk 0:03:01.8]} 3... Nf6 {[%clk 0:02:56.2]} 4.
O-O {[%clk 0:02:57.8]} 4... Nxe4 {[%clk 0:02:56.2]} 5. d4 {[%clk 0:02:58.4]}
5... Nd6 {[%clk 0:02:56.4]} 6. Bxc6 {[%clk 0:02:59]} 6... dxc6 {[%clk
0:02:57.3]} 7. dxe5 {[%clk 0:02:59.7]} 7... Nf5 {[%clk 0:02:57.9]} 8. Qxd8+
{[%clk 0:03:00.4]} 8... Kxd8 {[%clk 0:02:58.3]} 9. h3 {[%clk 0:02:59.3]} 9...
Bd7 {[%clk 0:02:58.1]} 10. Rd1 {[%clk 0:02:58.6]} 10... Kc8 {[%clk 0:02:55.9]}
11. g4 {[%clk 0:02:52.6]} 11... Ne7 {[%clk 0:02:53.8]} 12. Ng5 {[%clk
0:02:52.9]} 12... Be8 {[%clk 0:02:40.8]} 13. f4 {[%clk 0:02:52.3]} 13... h6
{[%clk 0:02:35.9]} 14. Nf3 {[%clk 0:02:49.7]} 14... b6 {[%clk 0:02:30.1]} 15.
Nc3 {[%clk 0:02:45.9]} 15... c5 {[%clk 0:02:22]} 16. f5 {[%clk 0:02:45.6]} 16...
Nc6 {[%clk 0:02:20.6]} 17. Bf4 {[%clk 0:02:43.1]} 17... Nd4 {[%clk 0:02:11.3]}
18. Nxd4 {[%clk 0:02:37.1]} 18... cxd4 {[%clk 0:02:12.2]} 19. Ne2 {[%clk
0:02:36.4]} 19... c5 {[%clk 0:02:09.9]} 20. c3 {[%clk 0:02:34.3]} 20... Bb5
{[%clk 0:01:59.8]} 21. Ng3 {[%clk 0:02:07.7]} 21... Kb7 {[%clk 0:01:36.3]} 22.
Kf2 {[%clk 0:01:44.4]} 22... Be7 {[%clk 0:01:31.5]} 23. cxd4 {[%clk 0:01:27.3]}
23... cxd4 {[%clk 0:01:31.6]} 24. Ne4 {[%clk 0:01:28.1]} 24... Rhd8 {[%clk
0:01:19.7]} 25. Rac1 {[%clk 0:01:20.4]} 25... Bc6 {[%clk 0:01:03.7]} 26. Nd6+
{[%clk 0:01:15.8]} 26... Bxd6 {[%clk 0:01:01.7]} 27. exd6 {[%clk 0:01:16.7]}
27... g5 {[%clk 0:00:56.4]} 28. Bg3 {[%clk 0:00:45]} 28... h5 {[%clk 0:00:51.3]}
29. Rxd4 {[%clk 0:00:44.5]} 29... hxg4 {[%clk 0:00:51]} 30. hxg4 {[%clk
0:00:44.4]} 30... Rac8 {[%clk 0:00:42.1]} 31. Be5 {[%clk 0:00:37.3]} 31... Rd7
{[%clk 0:00:27.7]} 32. Bf6 {[%clk 0:00:36.7]} 32... Re8 {[%clk 0:00:25.8]} 33.
Re1 {[%clk 0:00:24.4]} 33... Rxe1 {[%clk 0:00:21]} 34. Kxe1 {[%clk 0:00:25.3]}
34... Bf3 {[%clk 0:00:14.3]} 35. Kf2 {[%clk 0:00:23.8]} 35... Kc6 {[%clk
0:00:14.9]} 36. Kxf3 {[%clk 0:00:23.5]} 1-0